[Event "Titled Tuesday Blitz August 09 Late 2022"]
[White "Wan, Joseph"]
[Black "Naroditsky, Daniel"]
[WhiteFideId "2069890"]
[BlackFideId "2026961"]
[WhiteElo "2198"]
[BlackElo "2628"]
[Result "0-1"]
[Round "02"]
[TimeControl "180+1"]
[Date "2022.08.09"]
[WhiteClock "0:00:03"]
[BlackClock "0:00:04"]

1. d4 {[%clk 0:02:58]}  Nf6 {[%clk 0:03:00]} 2. Bf4 {[%clk 0:02:58]}  g6 {[%clk 0:02:58]} 3. Nc3 {[%clk 0:02:56]}  d5 {[%clk 0:02:53]} 4. e3 {[%clk 0:02:55]}  Bg7 {[%clk 0:02:52]} 5. Nb5 {[%clk 0:02:55]}  Na6 {[%clk 0:02:52]} 6. Nf3 {[%clk 0:02:54]}  O-O {[%clk 0:02:50]} 7. h3 {[%clk 0:02:52]}  c6 {[%clk 0:02:50]} 8. Nc3 {[%clk 0:02:52]}  b6 {[%clk 0:02:37]} 9. Be2 {[%clk 0:02:51]}  Bb7 {[%clk 0:02:37]} 10. O-O {[%clk 0:02:51]}  Nc7 {[%clk 0:02:36]} 11. a4 {[%clk 0:02:51]}  a5 {[%clk 0:02:30]} 12. Bh2 {[%clk 0:02:46]}  Nfe8 {[%clk 0:02:28]} 13. Nd2 {[%clk 0:02:26]}  Nd6 {[%clk 0:02:27]} 14. Re1 {[%clk 0:02:15]}  c5 {[%clk 0:02:25]} 15. Be5 {[%clk 0:02:08]}  f6 {[%clk 0:02:15]} 16. Bh2 {[%clk 0:02:07]}  e5 {[%clk 0:02:13]} 17. dxe5 {[%clk 0:02:08]}  fxe5 {[%clk 0:02:13]} 18. e4 {[%clk 0:02:03]}  d4 {[%clk 0:02:11]} 19. Nb5 {[%clk 0:02:03]}  Ncxb5 {[%clk 0:02:02]} 20. axb5 {[%clk 0:02:04]}  Qg5 {[%clk 0:01:51]} 21. Bd3 {[%clk 0:01:42]}  Bc8 {[%clk 0:01:45]} 22. Kh1 {[%clk 0:01:41]}  Be6 {[%clk 0:01:45]} 23. Qe2 {[%clk 0:01:36]}  Kh8 {[%clk 0:01:39]} 24. Nf3 {[%clk 0:01:33]}  Qh5 {[%clk 0:01:36]} 25. Nxe5 {[%clk 0:01:23]}  Qxe2 {[%clk 0:01:33]} 26. Bxe2 {[%clk 0:01:03]}  Rae8 {[%clk 0:01:33]} 27. Bf3 {[%clk 0:01:01]}  Nxb5 {[%clk 0:01:28]} 28. Nd3 {[%clk 0:00:58]}  c4 {[%clk 0:01:24]} 29. Nf4 {[%clk 0:00:58]}  d3 {[%clk 0:01:07]} 30. cxd3 {[%clk 0:00:56]}  Bxb2 {[%clk 0:01:07]} 31. Ra2 {[%clk 0:00:38]}  c3 {[%clk 0:01:04]} 32. Nxe6 {[%clk 0:00:38]}  Rxe6 {[%clk 0:01:05]} 33. Bd1 {[%clk 0:00:38]}  Rxf2 {[%clk 0:01:01]} 34. Bb3 {[%clk 0:00:34]}  Re7 {[%clk 0:00:57]} 35. Bg1 {[%clk 0:00:33]}  Rf6 {[%clk 0:00:50]} 36. Bc4 {[%clk 0:00:25]}  Rf5 {[%clk 0:00:29]} 37. Bxb6 {[%clk 0:00:22]}  Kg7 {[%clk 0:00:25]} 38. Be3 {[%clk 0:00:20]}  Rh5 {[%clk 0:00:22]} 39. Rxa5 {[%clk 0:00:16]}  Na3 {[%clk 0:00:15]} 40. Rxh5 {[%clk 0:00:15]}  gxh5 {[%clk 0:00:16]} 41. Bb3 {[%clk 0:00:15]}  c2 {[%clk 0:00:14]} 42. d4 {[%clk 0:00:10]}  Rxe4 {[%clk 0:00:11]} 43. Bxc2 {[%clk 0:00:07]}  Nxc2 {[%clk 0:00:09]} 44. Bh6+ {[%clk 0:00:08]}  Kxh6 {[%clk 0:00:09]} 45. Rxe4 {[%clk 0:00:08]}  Nxd4 {[%clk 0:00:07]} 46. Kg1 {[%clk 0:00:06]}  Nf5 {[%clk 0:00:07]} 47. Kf2 {[%clk 0:00:05]}  Bf6 {[%clk 0:00:05]} 48. Rf4 {[%clk 0:00:04]}  Kg5 {[%clk 0:00:05]} 49. Ra4 {[%clk 0:00:04]}  Bd4+ {[%clk 0:00:03]} 50. Kf3 {[%clk 0:00:04]}  Be5 {[%clk 0:00:03]} 51. Kf2 {[%clk 0:00:03]}  h4 {[%clk 0:00:03]} 52. Ra5 {[%clk 0:00:03]}  Bg3+ {[%clk 0:00:03]} 53. Kf3 {[%clk 0:00:03]}  Kf6 {[%clk 0:00:04]} 54. Ke4 {[%clk 0:00:03]}  Nd6+ {[%clk 0:00:05]} 55. Kf3 {[%clk 0:00:03]}  Nc4 {[%clk 0:00:05]} 56. Ra6+ {[%clk 0:00:03]}  Kf5 {[%clk 0:00:05]} 57. Ra7 {[%clk 0:00:02]}  h5 {[%clk 0:00:04]} 58. Rf7+ {[%clk 0:00:02]}  Kg6 {[%clk 0:00:04]} 59. Ra7 {[%clk 0:00:02]}  Kf5 {[%clk 0:00:04]} 60. Rf7+ {[%clk 0:00:02]}  Kg5 {[%clk 0:00:05]} 61. Ra7 {[%clk 0:00:03]}  Nd2+ {[%clk 0:00:04]} 62. Ke2 {[%clk 0:00:03]}  Ne4 {[%clk 0:00:05]} 63. Kf3 {[%clk 0:00:03]}  Nf6 {[%clk 0:00:05]} 64. Rg7+ {[%clk 0:00:03]}  Kf5 {[%clk 0:00:05]} 65. Ra7 {[%clk 0:00:04]}  Be5 {[%clk 0:00:04]} 66. Ra5 {[%clk 0:00:04]}  Ne4 {[%clk 0:00:04]} 67. Ra7 {[%clk 0:00:04]}  Ng5+ {[%clk 0:00:04]} 68. Ke2 {[%clk 0:00:04]}  Ne6 {[%clk 0:00:05]} 69. Kf3 {[%clk 0:00:03]}  Bd4 {[%clk 0:00:05]} 70. Ra5+ {[%clk 0:00:03]}  Bc5 {[%clk 0:00:05]} 71. Rb5 {[%clk 0:00:03]}  Nd4+ {[%clk 0:00:04]} 0-1


[Site "https://www.chess.com"]

[Event "Titled Tuesday Blitz August 09 Late 2022"]
[White "Babazada, Khazar"]
[Black "Blanco Ronquillo, Humberto L."]
[WhiteFideId "13413554"]
[BlackFideId "3504239"]
[WhiteElo "2409"]
[BlackElo "2425"]
[Result "1-0"]
[Round "03"]
[TimeControl "180+1"]
[Date "2022.08.09"]
[WhiteClock "0:00:04"]
[BlackClock "0:00:01"]

1. g3 {[%clk 0:03:00]}  d5 {[%clk 0:02:57]} 2. Bg2 {[%clk 0:03:01]}  c6 {[%clk 0:02:57]} 3. d3 {[%clk 0:03:00]}  Nf6 {[%clk 0:02:58]} 4. Nd2 {[%clk 0:03:00]}  g6 {[%clk 0:02:56]} 5. e4 {[%clk 0:03:00]}  Bg7 {[%clk 0:02:56]} 6. Ne2 {[%clk 0:03:01]}  O-O {[%clk 0:02:56]} 7. O-O {[%clk 0:03:01]}  a5 {[%clk 0:02:55]} 8. a4 {[%clk 0:03:01]}  Na6 {[%clk 0:02:53]} 9. h3 {[%clk 0:03:02]}  Nb4 {[%clk 0:02:52]} 10. e5 {[%clk 0:03:01]}  Ne8 {[%clk 0:02:45]} 11. f4 {[%clk 0:03:01]}  c5 {[%clk 0:02:42]} 12. Nf3 {[%clk 0:02:59]}  d4 {[%clk 0:02:39]} 13. Bd2 {[%clk 0:02:38]}  Nc7 {[%clk 0:02:39]} 14. g4 {[%clk 0:02:33]}  Ncd5 {[%clk 0:02:38]} 15. Ng3 {[%clk 0:02:33]}  Ra6 {[%clk 0:02:35]} 16. f5 {[%clk 0:02:31]}  gxf5 {[%clk 0:02:11]} 17. gxf5 {[%clk 0:02:30]}  Bh6 {[%clk 0:02:12]} 18. Ng5 {[%clk 0:02:11]}  Ne3 {[%clk 0:01:22]} 19. Bxe3 {[%clk 0:02:11]}  dxe3 {[%clk 0:01:23]} 20. Qh5 {[%clk 0:02:12]}  Qd4 {[%clk 0:01:14]} 21. Kh1 {[%clk 0:01:14]}  Qxe5 {[%clk 0:01:13]} 22. Be4 {[%clk 0:01:10]}  Bxg5 {[%clk 0:00:54]} 23. Rg1 {[%clk 0:00:49]}  Kh8 {[%clk 0:00:33]} 24. Qxg5 {[%clk 0:00:48]}  Rg8 {[%clk 0:00:33]} 25. Qh4 {[%clk 0:00:46]}  Nxc2 {[%clk 0:00:28]} 26. f6 {[%clk 0:00:46]}  Rg6 {[%clk 0:00:23]} 27. Bxg6 {[%clk 0:00:44]}  fxg6 {[%clk 0:00:24]} 28. f7 {[%clk 0:00:42]}  Qd5+ {[%clk 0:00:19]} 29. Ne4 {[%clk 0:00:42]}  Qxf7 {[%clk 0:00:20]} 30. Raf1 {[%clk 0:00:43]}  Qg7 {[%clk 0:00:19]} 31. Ng5 {[%clk 0:00:28]}  Be6 {[%clk 0:00:15]} 32. Qf4 {[%clk 0:00:14]}  Bd5+ {[%clk 0:00:12]} 33. Kh2 {[%clk 0:00:13]}  h6 {[%clk 0:00:12]} 34. Qb8+ {[%clk 0:00:11]}  Bg8 {[%clk 0:00:10]} 35. Rf7 {[%clk 0:00:12]}  hxg5 {[%clk 0:00:04]} 36. Rxg7 {[%clk 0:00:12]}  Kxg7 {[%clk 0:00:05]} 37. Qe5+ {[%clk 0:00:13]}  Rf6 {[%clk 0:00:05]} 38. Qxe7+ {[%clk 0:00:13]}  Rf7 {[%clk 0:00:05]} 39. Qe5+ {[%clk 0:00:14]}  Kh7 {[%clk 0:00:05]} 40. Rxg5 {[%clk 0:00:12]}  Rf2+ {[%clk 0:00:05]} 41. Kg3 {[%clk 0:00:12]}  Nd4 {[%clk 0:00:05]} 42. Qxe3 {[%clk 0:00:07]}  Rxb2 {[%clk 0:00:05]} 43. Qe7+ {[%clk 0:00:07]}  Kh6 {[%clk 0:00:04]} 44. Rxc5 {[%clk 0:00:05]}  Ne2+ {[%clk 0:00:02]} 45. Kh4 {[%clk 0:00:04]}  Nf4 {[%clk 0:00:01]} 46. Qg5+ {[%clk 0:00:03]}  Kh7 {[%clk 0:00:02]} 47. Qxf4 {[%clk 0:00:04]}  Be6 {[%clk 0:00:02]} 48. Rc7+ {[%clk 0:00:04]}  Kg8 {[%clk 0:00:01]} 49. Qf6 {[%clk 0:00:04]} 1-0


[Site "https://www.chess.com"]

[Event "Titled Tuesday Blitz August 09 Late 2022"]
[White "Bach, Matthias"]
[Black "Rastbod, Ali"]
[WhiteFideId "4603168"]
[BlackFideId "12567477"]
[WhiteElo "2165"]
[BlackElo "2191"]
[Result "0-1"]
[Round "03"]
[TimeControl "180+1"]
[Date "2022.08.09"]
[WhiteClock "0:00:09"]
[BlackClock "0:00:06"]

1. d4 {[%clk 0:02:58]}  Nf6 {[%clk 0:02:53]} 2. c4 {[%clk 0:02:59]}  e6 {[%clk 0:02:53]} 3. Nc3 {[%clk 0:02:59]}  d5 {[%clk 0:02:53]} 4. Nf3 {[%clk 0:02:57]}  a6 {[%clk 0:02:53]} 5. g3 {[%clk 0:02:56]}  dxc4 {[%clk 0:02:53]} 6. a4 {[%clk 0:02:55]}  Bd7 {[%clk 0:02:21]} 7. Bg2 {[%clk 0:02:49]}  Bc6 {[%clk 0:02:20]} 8. O-O {[%clk 0:02:44]}  Bb4 {[%clk 0:02:20]} 9. Bg5 {[%clk 0:02:40]}  Nbd7 {[%clk 0:02:11]} 10. Qc2 {[%clk 0:02:30]}  O-O {[%clk 0:01:46]} 11. Rfd1 {[%clk 0:01:56]}  b5 {[%clk 0:01:39]} 12. Ne5 {[%clk 0:01:30]}  Bxg2 {[%clk 0:01:37]} 13. Kxg2 {[%clk 0:01:29]}  Qc8 {[%clk 0:01:37]} 14. f3 {[%clk 0:01:11]}  Qb7 {[%clk 0:01:26]} 15. e4 {[%clk 0:01:07]}  h6 {[%clk 0:01:20]} 16. Be3 {[%clk 0:01:01]}  Rfd8 {[%clk 0:01:17]} 17. g4 {[%clk 0:00:59]}  Nxe5 {[%clk 0:01:15]} 18. dxe5 {[%clk 0:00:58]}  Nd7 {[%clk 0:01:16]} 19. g5 {[%clk 0:00:40]}  Nxe5 {[%clk 0:00:53]} 20. gxh6 {[%clk 0:00:38]}  Nd3 {[%clk 0:00:52]} 21. hxg7 {[%clk 0:00:35]}  Kxg7 {[%clk 0:00:52]} 22. Kh1 {[%clk 0:00:34]}  Rh8 {[%clk 0:00:41]} 23. Qd2 {[%clk 0:00:27]}  Bd6 {[%clk 0:00:38]} 24. Bd4+ {[%clk 0:00:25]}  e5 {[%clk 0:00:33]} 25. Qg5+ {[%clk 0:00:23]}  Kf8 {[%clk 0:00:33]} 26. Be3 {[%clk 0:00:20]}  Be7 {[%clk 0:00:21]} 27. Qg3 {[%clk 0:00:19]}  c6 {[%clk 0:00:17]} 28. Rg1 {[%clk 0:00:19]}  Ke8 {[%clk 0:00:16]} 29. Bg5 {[%clk 0:00:16]}  Bxg5 {[%clk 0:00:12]} 30. Qxg5 {[%clk 0:00:16]}  Qe7 {[%clk 0:00:09]} 31. Qg7 {[%clk 0:00:15]}  Qh4 {[%clk 0:00:09]} 32. Rg2 {[%clk 0:00:15]}  Ke7 {[%clk 0:00:08]} 33. Rd1 {[%clk 0:00:11]}  Rag8 {[%clk 0:00:07]} 34. Rxd3 {[%clk 0:00:09]}  Rxg7 {[%clk 0:00:06]} 0-1


[Site "https://www.chess.com"]

[Event "Titled Tuesday Blitz August 09 Late 2022"]
[White "Boruchovsky, Avital"]
[Black "Bortnyk, Olexandr"]
[WhiteFideId "2800055"]
[BlackFideId "14120828"]
[WhiteElo "2466"]
[BlackElo "2723"]
[Result "0-1"]
[Round "03"]
[TimeControl "180+1"]
[Date "2022.08.09"]
[WhiteClock "0:00:01"]
[BlackClock "0:00:30"]

1. Nf3 {[%clk 0:03:00]}  Nf6 {[%clk 0:02:58]} 2. c4 {[%clk 0:02:59]}  d6 {[%clk 0:02:58]} 3. d4 {[%clk 0:02:58]}  g6 {[%clk 0:02:59]} 4. Nc3 {[%clk 0:02:59]}  Bf5 {[%clk 0:02:59]} 5. h3 {[%clk 0:02:56]}  Bg7 {[%clk 0:02:58]} 6. g4 {[%clk 0:02:56]}  Bd7 {[%clk 0:02:59]} 7. Bg2 {[%clk 0:02:56]}  O-O {[%clk 0:02:57]} 8. e4 {[%clk 0:02:57]}  c5 {[%clk 0:02:54]} 9. Be3 {[%clk 0:02:54]}  cxd4 {[%clk 0:02:52]} 10. Nxd4 {[%clk 0:02:55]}  Nc6 {[%clk 0:02:52]} 11. O-O {[%clk 0:02:54]}  a6 {[%clk 0:02:51]} 12. Rc1 {[%clk 0:02:53]}  Rc8 {[%clk 0:02:51]} 13. b3 {[%clk 0:02:50]}  Qa5 {[%clk 0:02:50]} 14. Qd2 {[%clk 0:02:49]}  Rfe8 {[%clk 0:02:45]} 15. Nxc6 {[%clk 0:02:48]}  Bxc6 {[%clk 0:02:45]} 16. Bd4 {[%clk 0:02:48]}  b5 {[%clk 0:02:40]} 17. cxb5 {[%clk 0:02:43]}  axb5 {[%clk 0:02:37]} 18. Rfd1 {[%clk 0:02:37]}  b4 {[%clk 0:02:11]} 19. Nd5 {[%clk 0:02:34]}  Bxd5 {[%clk 0:02:11]} 20. exd5 {[%clk 0:02:32]}  Nd7 {[%clk 0:02:05]} 21. Rc6 {[%clk 0:02:03]}  Bxd4 {[%clk 0:02:03]} 22. Qxd4 {[%clk 0:02:01]}  Qxa2 {[%clk 0:01:58]} 23. Qxb4 {[%clk 0:01:58]}  Rb8 {[%clk 0:01:56]} 24. Qa4 {[%clk 0:01:43]}  Qxb3 {[%clk 0:01:56]} 25. Qxb3 {[%clk 0:01:42]}  Rxb3 {[%clk 0:01:57]} 26. Re1 {[%clk 0:01:41]}  Ne5 {[%clk 0:01:52]} 27. Rc7 {[%clk 0:01:39]}  g5 {[%clk 0:01:53]} 28. Re4 {[%clk 0:01:34]}  Ng6 {[%clk 0:01:46]} 29. Kh2 {[%clk 0:01:22]}  Kf8 {[%clk 0:01:43]} 30. Rec4 {[%clk 0:01:16]}  Rb2 {[%clk 0:01:22]} 31. Kg3 {[%clk 0:01:14]}  h6 {[%clk 0:01:12]} 32. Be4 {[%clk 0:01:13]}  Nf4 {[%clk 0:01:08]} 33. h4 {[%clk 0:00:36]}  Rb3+ {[%clk 0:01:02]} 34. f3 {[%clk 0:00:37]}  Rb2 {[%clk 0:01:00]} 35. hxg5 {[%clk 0:00:37]}  hxg5 {[%clk 0:00:59]} 36. Rc2 {[%clk 0:00:37]}  Rxc2 {[%clk 0:00:58]} 37. Rxc2 {[%clk 0:00:37]}  Rb8 {[%clk 0:00:56]} 38. Rh2 {[%clk 0:00:32]}  Rb5 {[%clk 0:00:52]} 39. Rh8+ {[%clk 0:00:20]}  Kg7 {[%clk 0:00:52]} 40. Rh7+ {[%clk 0:00:20]}  Kg8 {[%clk 0:00:52]} 41. Rh1 {[%clk 0:00:12]}  Nxd5 {[%clk 0:00:45]} 42. Bd3 {[%clk 0:00:12]}  Rc5 {[%clk 0:00:42]} 43. Re1 {[%clk 0:00:11]}  Nf4 {[%clk 0:00:37]} 44. Bf5 {[%clk 0:00:09]}  e6 {[%clk 0:00:37]} 45. Bb1 {[%clk 0:00:07]}  Rd5 {[%clk 0:00:30]} 46. Kf2 {[%clk 0:00:05]}  Kg7 {[%clk 0:00:30]} 47. Rc1 {[%clk 0:00:01]}  Rd2+ {[%clk 0:00:30]} 0-1


[Site "https://www.chess.com"]

[Event "Titled Tuesday Blitz August 09 Late 2022"]
[White "Djordjevic, Vuk"]
[Black "Gubajdullin, Alexei"]
[WhiteFideId "902098"]
[BlackFideId "4141202"]
[WhiteElo "2456"]
[BlackElo "2214"]
[Result "1-0"]
[Round "03"]
[TimeControl "180+1"]
[Date "2022.08.09"]
[WhiteClock "0:00:08"]
[BlackClock "0:00:02"]

1. d4 {[%clk 0:03:00]}  Nf6 {[%clk 0:02:59]} 2. Bg5 {[%clk 0:03:01]}  Ne4 {[%clk 0:02:54]} 3. Bf4 {[%clk 0:03:01]}  d5 {[%clk 0:02:52]} 4. e3 {[%clk 0:03:01]}  e6 {[%clk 0:02:50]} 5. Bd3 {[%clk 0:03:02]}  b6 {[%clk 0:02:39]} 6. c4 {[%clk 0:02:59]}  Bb4+ {[%clk 0:02:32]} 7. Kf1 {[%clk 0:02:56]}  O-O {[%clk 0:02:28]} 8. Qc2 {[%clk 0:02:43]}  Ba6 {[%clk 0:02:25]} 9. Ne2 {[%clk 0:02:13]}  f5 {[%clk 0:02:11]} 10. a3 {[%clk 0:01:58]}  Be7 {[%clk 0:02:03]} 11. b4 {[%clk 0:01:57]}  g5 {[%clk 0:01:54]} 12. Bg3 {[%clk 0:01:45]}  c5 {[%clk 0:01:48]} 13. b5 {[%clk 0:01:11]}  Bb7 {[%clk 0:01:46]} 14. Nbc3 {[%clk 0:01:11]}  Nd7 {[%clk 0:01:19]} 15. Rd1 {[%clk 0:01:10]}  Rc8 {[%clk 0:01:11]} 16. cxd5 {[%clk 0:01:09]}  exd5 {[%clk 0:01:08]} 17. f3 {[%clk 0:01:06]}  cxd4 {[%clk 0:01:03]} 18. exd4 {[%clk 0:01:05]}  f4 {[%clk 0:00:46]} 19. Be1 {[%clk 0:01:00]}  Ndf6 {[%clk 0:00:38]} 20. fxe4 {[%clk 0:00:46]}  dxe4 {[%clk 0:00:38]} 21. Qb3+ {[%clk 0:00:46]}  Kh8 {[%clk 0:00:36]} 22. Bc4 {[%clk 0:00:44]}  f3 {[%clk 0:00:31]} 23. Ng3 {[%clk 0:00:39]}  Ng4 {[%clk 0:00:30]} 24. Ncxe4 {[%clk 0:00:36]}  Rxc4 {[%clk 0:00:27]} 25. gxf3 {[%clk 0:00:29]}  Bd5 {[%clk 0:00:24]} 26. Qd3 {[%clk 0:00:26]}  Qc7 {[%clk 0:00:11]} 27. Kg2 {[%clk 0:00:25]}  Rc2+ {[%clk 0:00:11]} 28. Rd2 {[%clk 0:00:26]}  Rxd2+ {[%clk 0:00:09]} 29. Bxd2 {[%clk 0:00:26]}  Bc4 {[%clk 0:00:07]} 30. Qc3 {[%clk 0:00:22]}  Nf6 {[%clk 0:00:06]} 31. Rc1 {[%clk 0:00:13]}  Rc8 {[%clk 0:00:05]} 32. d5 {[%clk 0:00:14]}  Qd8 {[%clk 0:00:04]} 33. Bxg5 {[%clk 0:00:12]}  Bf1+ {[%clk 0:00:03]} 34. Kxf1 {[%clk 0:00:10]}  Rxc3 {[%clk 0:00:03]} 35. Bxf6+ {[%clk 0:00:07]}  Bxf6 {[%clk 0:00:02]} 36. Nxc3 {[%clk 0:00:08]} 1-0


[Site "https://www.chess.com"]

[Event "Titled Tuesday Blitz August 09 Late 2022"]
[White "Esipenko, Andrey"]
[Black "Bartholomew, John"]
[WhiteFideId "24175439"]
[BlackFideId "2019353"]
[WhiteElo "2619"]
[BlackElo "2761"]
[Result "1-0"]
[Round "03"]
[TimeControl "180+1"]
[Date "2022.08.09"]
[WhiteClock "0:00:27"]
[BlackClock "0:00:18"]

1. e4 {[%clk 0:03:00]}  d5 {[%clk 0:02:58]} 2. exd5 {[%clk 0:03:00]}  Qxd5 {[%clk 0:02:58]} 3. Nc3 {[%clk 0:02:59]}  Qa5 {[%clk 0:02:58]} 4. d4 {[%clk 0:02:56]}  Nf6 {[%clk 0:02:59]} 5. Nf3 {[%clk 0:02:55]}  Bf5 {[%clk 0:02:59]} 6. Ne5 {[%clk 0:02:50]}  c6 {[%clk 0:02:54]} 7. a3 {[%clk 0:02:47]}  Nbd7 {[%clk 0:02:42]} 8. Nc4 {[%clk 0:02:46]}  Qd8 {[%clk 0:02:41]} 9. Bf4 {[%clk 0:02:45]}  Nb6 {[%clk 0:02:39]} 10. Ne3 {[%clk 0:02:44]}  Bg6 {[%clk 0:02:32]} 11. h4 {[%clk 0:02:44]}  h6 {[%clk 0:02:30]} 12. h5 {[%clk 0:02:22]}  Bh7 {[%clk 0:02:28]} 13. Bd3 {[%clk 0:01:55]}  Bxd3 {[%clk 0:02:25]} 14. Qxd3 {[%clk 0:01:56]}  e6 {[%clk 0:02:24]} 15. O-O-O {[%clk 0:01:54]}  Bd6 {[%clk 0:02:14]} 16. Be5 {[%clk 0:01:48]}  Qc7 {[%clk 0:01:49]} 17. f4 {[%clk 0:01:48]}  O-O-O {[%clk 0:01:46]} 18. Kb1 {[%clk 0:01:42]}  Kb8 {[%clk 0:01:43]} 19. g3 {[%clk 0:01:41]}  a6 {[%clk 0:01:33]} 20. Qe2 {[%clk 0:01:37]}  Nbd5 {[%clk 0:01:31]} 21. Ncxd5 {[%clk 0:01:32]}  cxd5 {[%clk 0:01:26]} 22. c4 {[%clk 0:01:31]}  Ka8 {[%clk 0:01:01]} 23. Bxf6 {[%clk 0:01:14]}  gxf6 {[%clk 0:01:01]} 24. cxd5 {[%clk 0:01:15]}  exd5 {[%clk 0:01:01]} 25. Rc1 {[%clk 0:01:01]}  Qa5 {[%clk 0:00:55]} 26. Qd3 {[%clk 0:01:00]}  Rhe8 {[%clk 0:00:51]} 27. Nf5 {[%clk 0:01:00]}  Bf8 {[%clk 0:00:49]} 28. Ka2 {[%clk 0:00:59]}  Rc8 {[%clk 0:00:43]} 29. Rc2 {[%clk 0:00:59]}  Qa4 {[%clk 0:00:33]} 30. Rhc1 {[%clk 0:00:58]}  Qd7 {[%clk 0:00:32]} 31. Rxc8+ {[%clk 0:00:56]}  Rxc8 {[%clk 0:00:33]} 32. Rxc8+ {[%clk 0:00:57]}  Qxc8 {[%clk 0:00:34]} 33. Ne3 {[%clk 0:00:57]}  Qe6 {[%clk 0:00:33]} 34. Qb3 {[%clk 0:00:55]}  Qe4 {[%clk 0:00:31]} 35. Nxd5 {[%clk 0:00:49]}  Qxd4 {[%clk 0:00:31]} 36. Nc7+ {[%clk 0:00:49]}  Ka7 {[%clk 0:00:27]} 37. Qxf7 {[%clk 0:00:47]}  f5 {[%clk 0:00:23]} 38. Qd5 {[%clk 0:00:40]}  Qb6 {[%clk 0:00:19]} 39. Ne6 {[%clk 0:00:38]}  Be7 {[%clk 0:00:19]} 40. Qxf5 {[%clk 0:00:38]}  Qc6 {[%clk 0:00:19]} 41. Nd4 {[%clk 0:00:34]}  Qc4+ {[%clk 0:00:19]} 42. Nb3 {[%clk 0:00:35]}  Bd8 {[%clk 0:00:19]} 43. Qc5+ {[%clk 0:00:35]}  Qxc5 {[%clk 0:00:17]} 44. Nxc5 {[%clk 0:00:36]}  Bb6 {[%clk 0:00:18]} 45. Ne4 {[%clk 0:00:35]}  Bd4 {[%clk 0:00:17]} 46. b4 {[%clk 0:00:35]}  b5 {[%clk 0:00:17]} 47. Kb3 {[%clk 0:00:36]}  Kb7 {[%clk 0:00:18]} 48. g4 {[%clk 0:00:37]}  Kc6 {[%clk 0:00:18]} 49. g5 {[%clk 0:00:37]}  Kd5 {[%clk 0:00:19]} 50. Nc5 {[%clk 0:00:36]}  Be3 {[%clk 0:00:18]} 51. g6 {[%clk 0:00:27]}  Bd4 {[%clk 0:00:18]} 52. f5 {[%clk 0:00:28]}  Bg7 {[%clk 0:00:18]} 53. Ne6 {[%clk 0:00:27]} 1-0


[Site "https://www.chess.com"]

[Event "Titled Tuesday Blitz August 09 Late 2022"]
[White "Galperin, Platon"]
[Black "Bilych, Olexiy"]
[WhiteFideId "14165414"]
[BlackFideId "14156504"]
[WhiteElo "2435"]
[BlackElo "2157"]
[Result "1-0"]
[Round "03"]
[TimeControl "180+1"]
[Date "2022.08.09"]
[WhiteClock "0:01:07"]
[BlackClock "0:00:06"]

1. b3 {[%clk 0:03:00]}  d5 {[%clk 0:02:58]} 2. Bb2 {[%clk 0:03:00]}  Bg4 {[%clk 0:02:58]} 3. Nf3 {[%clk 0:02:55]}  Bxf3 {[%clk 0:02:58]} 4. gxf3 {[%clk 0:02:56]}  Nf6 {[%clk 0:02:54]} 5. e3 {[%clk 0:02:56]}  Nbd7 {[%clk 0:02:54]} 6. f4 {[%clk 0:02:54]}  e6 {[%clk 0:02:50]} 7. c4 {[%clk 0:02:52]}  c6 {[%clk 0:02:49]} 8. Nc3 {[%clk 0:02:52]}  g6 {[%clk 0:02:48]} 9. Qc2 {[%clk 0:02:50]}  Bg7 {[%clk 0:02:48]} 10. cxd5 {[%clk 0:02:48]}  exd5 {[%clk 0:02:38]} 11. O-O-O {[%clk 0:02:45]}  Qe7 {[%clk 0:02:32]} 12. Bg2 {[%clk 0:02:42]}  O-O {[%clk 0:02:20]} 13. h4 {[%clk 0:02:37]}  a5 {[%clk 0:01:57]} 14. Bf3 {[%clk 0:02:36]}  h5 {[%clk 0:01:55]} 15. f5 {[%clk 0:02:35]}  Ne5 {[%clk 0:01:49]} 16. Be2 {[%clk 0:02:35]}  Kh7 {[%clk 0:00:51]} 17. Rdg1 {[%clk 0:02:31]}  b5 {[%clk 0:00:41]} 18. Rg5 {[%clk 0:02:16]}  Bh6 {[%clk 0:00:37]} 19. fxg6+ {[%clk 0:02:09]}  fxg6 {[%clk 0:00:37]} 20. Nxd5 {[%clk 0:02:02]}  cxd5 {[%clk 0:00:31]} 21. Rxe5 {[%clk 0:02:03]}  Qd6 {[%clk 0:00:27]} 22. Qd3 {[%clk 0:01:54]}  Rac8+ {[%clk 0:00:20]} 23. Kb1 {[%clk 0:01:53]}  d4 {[%clk 0:00:17]} 24. Bxd4 {[%clk 0:01:51]}  Ng4 {[%clk 0:00:14]} 25. Rxh5 {[%clk 0:01:47]}  Nxf2 {[%clk 0:00:14]} 26. Rxh6+ {[%clk 0:01:46]}  Kxh6 {[%clk 0:00:12]} 27. Bg7+ {[%clk 0:01:45]}  Kxg7 {[%clk 0:00:12]} 28. Qxd6 {[%clk 0:01:45]}  Nxh1 {[%clk 0:00:13]} 29. Bxb5 {[%clk 0:01:11]}  Nf2 {[%clk 0:00:12]} 30. Bc4 {[%clk 0:01:11]}  Kh6 {[%clk 0:00:06]} 31. Qe7 {[%clk 0:01:08]}  Ng4 {[%clk 0:00:06]} 32. Qg5+ {[%clk 0:01:07]}  Kg7 {[%clk 0:00:06]} 33. Qxg4 {[%clk 0:01:07]} 1-0


[Site "https://www.chess.com"]

[Event "Titled Tuesday Blitz August 09 Late 2022"]
[White "Harsha Bharathakoti"]
[Black "Pulpan, Jakub"]
[WhiteFideId "5078776"]
[BlackFideId "302759"]
[WhiteElo "2575"]
[BlackElo "2451"]
[Result "1-0"]
[Round "03"]
[TimeControl "180+1"]
[Date "2022.08.09"]
[WhiteClock "0:01:15"]
[BlackClock "0:00:15"]

1. c4 {[%clk 0:03:00]}  Nf6 {[%clk 0:02:29]} 2. Nc3 {[%clk 0:02:59]}  c5 {[%clk 0:02:29]} 3. Nf3 {[%clk 0:02:59]}  e6 {[%clk 0:02:29]} 4. e3 {[%clk 0:02:58]}  d5 {[%clk 0:02:29]} 5. cxd5 {[%clk 0:02:58]}  exd5 {[%clk 0:02:28]} 6. d4 {[%clk 0:02:59]}  Nc6 {[%clk 0:02:29]} 7. Bb5 {[%clk 0:02:59]}  Bd6 {[%clk 0:02:28]} 8. dxc5 {[%clk 0:02:59]}  Bxc5 {[%clk 0:02:29]} 9. O-O {[%clk 0:02:59]}  O-O {[%clk 0:02:27]} 10. b3 {[%clk 0:03:00]}  Bg4 {[%clk 0:02:20]} 11. Bb2 {[%clk 0:02:55]}  Bd6 {[%clk 0:02:20]} 12. h3 {[%clk 0:02:47]}  Bh5 {[%clk 0:02:17]} 13. Be2 {[%clk 0:02:47]}  Rc8 {[%clk 0:02:13]} 14. Nb5 {[%clk 0:02:37]}  Bb8 {[%clk 0:02:10]} 15. Bxf6 {[%clk 0:02:38]}  Qxf6 {[%clk 0:02:08]} 16. Qxd5 {[%clk 0:02:38]}  Bg6 {[%clk 0:02:07]} 17. Nbd4 {[%clk 0:02:36]}  Rfd8 {[%clk 0:02:04]} 18. Qb5 {[%clk 0:02:28]}  Nxd4 {[%clk 0:01:46]} 19. Nxd4 {[%clk 0:02:29]}  Be4 {[%clk 0:01:39]} 20. Rac1 {[%clk 0:02:06]}  a6 {[%clk 0:01:35]} 21. Qh5 {[%clk 0:01:53]}  g6 {[%clk 0:01:30]} 22. Qg4 {[%clk 0:01:49]}  Rxc1 {[%clk 0:01:29]} 23. Rxc1 {[%clk 0:01:50]}  Qe5 {[%clk 0:01:26]} 24. g3 {[%clk 0:01:50]}  h5 {[%clk 0:01:13]} 25. Qh4 {[%clk 0:01:46]}  Re8 {[%clk 0:01:08]} 26. Bf3 {[%clk 0:01:42]}  Bxf3 {[%clk 0:01:07]} 27. Nxf3 {[%clk 0:01:43]}  Qb2 {[%clk 0:01:07]} 28. Qc4 {[%clk 0:01:17]}  Qxa2 {[%clk 0:00:49]} 29. Ng5 {[%clk 0:01:17]}  Rf8 {[%clk 0:00:50]} 30. Qd5 {[%clk 0:01:17]}  Qe2 {[%clk 0:00:30]} 31. Rc8 {[%clk 0:01:15]}  Bd6 {[%clk 0:00:15]} 32. Qxf7+ {[%clk 0:01:15]} 1-0


[Site "https://www.chess.com"]